Cogmind - Beta 14 @@@ ROGUE MODE // 2025.05.05 @ 14:09:11 Player: Rotpup_ Result: Smashed by cave-in Performance ------------- Evolutions (2) 1000 Regions Visited (5) 1000 Robots Destroyed (19) 95 Value Destroyed (548) 548 Prototype IDs (27) 540 Alien Tech Used (0) 0 Bonus (332) 332 TOTAL SCORE: 3515 Bonus ------- Follower Combat Kills 32 Aligned with FarCom 300 Cogmind --------- Core Integrity 0/550 Matter 300/300 Energy 100/100 System Corruption 19% Temperature Cool (0) Movement Core (200) Ox3 Location -8/Materials Parts ------- > --- POWER (1) -------- (None) > --- PROPULSION (3) --- (None) > --- UTILITY (5) ------ Medium Storage Unit > --- WEAPON (2) ------- (None) > --- INVENTORY (10) --- Ion Engine Surge Thruster Improved Sensor Array Improved Terrain Scanner Transport Network Coupler Light Assault Rifle Missile Launcher Datajack Peak State ------------ > --- POWER ------------ Light Nuclear Core > --- PROPULSION ------- Light Treads Light Treads Light Treads > --- UTILITY ---------- Medium Storage Unit Improved Signal Interpreter Improved Terrain Scanner Splice Drone Bay Supersonic Drone Bay > --- WEAPON ----------- Assault Rifle Great Maul > --- INVENTORY -------- Ion Engine Surge Thruster Improved Sensor Array Improved Terrain Scanner Melee Analysis Suite Light Assault Rifle Missile Launcher Datajack Great Maul [Rating: 34] Favorites ----------- Power Light Nuclear Core Engine Ion Engine Power Core Light Nuclear Core Propulsion Light Treads Treads Light Treads Flight Unit Surge Thruster Utility Splice Drone Bay Device Splice Drone Bay Storage Small Storage Unit Processor Improved Signal Interpreter Weapon Assault Rifle Energy Gun Medium Laser Ballistic Gun Assault Rifle Impact Weapon Great Maul Build | -11 -10 -10 -10 -9 -8 ------- Run | Yrd Mat Min Exi Min Mat Slots Evolved 4 | . . . . . 4 Power . | . . . . . . Propulsion 1 | . . . . . 1 Utility 3 | . . . . . 3 Weapon . | . . . . . . Parts Attached 25 | 7 . 9 1 1 7 Power 3 | 1 . 2 . . . Engine 2 | 1 . 1 . . . Core 1 | . . 1 . . . Reactor . | . . . . . . Propulsion 8 | 2 . 5 . . 1 Treads 6 | 2 . 3 . . 1 Leg . | . . . . . . Wheel . | . . . . . . Hover . | . . . . . . Flight 2 | . . 2 . . . Utility 8 | 2 . 1 1 . 4 Device 4 | 1 . 1 . . 2 Storage 2 | 1 . . 1 . . Processor 2 | . . . . . 2 Hackware . | . . . . . . Protection . | . . . . . . Artifact . | . . . . . . Weapon 6 | 2 . 1 . 1 2 Energy Gun 1 | 1 . . . . . Energy Cannon . | . . . . . . Ballistic Gun 2 | 1 . 1 . . . Ballistic Cannon . | . . . . . . Launcher . | . . . . . . Special Weapon . | . . . . . . Impact Weapon 3 | . . . . 1 2 Slashing Weapon . | . . . . . . Piercing Weapon . | . . . . . . Special Melee Weapon . | . . . . . . Unidentified Prototypes 1 | . . 1 . . . Parts Lost 13 | . . 1 . . 12 Power 1 | . . . . . 1 Propulsion 4 | . . 1 . . 3 Utility 5 | . . . . . 5 Weapon 3 | . . . . . 3 Highest Loss Streak 9 | . . 1 . . 9 To Critical Strikes 1 | . . . . . 1 Average Slot Usage (%) 97 | . 100 99 100 100 91 Engine 1 | . 14 3 . . . Core 10 | . . 11 14 14 7 Treads 24 | . 28 21 28 28 24 Flight 2 | . . 6 . . . Device 16 | . 14 14 14 14 23 Storage 12 | . 14 14 14 14 9 Processor 2 | . . . . . 9 Energy Gun 1 | . 14 3 . . . Ballistic Gun 20 | . 14 24 28 24 7 Impact Weapon 3 | . . . . 3 9 Peak Build Rating 34 | 7 7 20 17 18 34 Average Rating 18 | 5 7 15 16 17 30 On Entrance 10 | . 7 7 16 17 18 Naked Turns . | . . . . . . Heaviest Build 31 | 15 15 22 26 28 31 Greatest Support 60 | 40 40 40 40 40 60 Greatest Overweight (x) 6 | . . 6 . . . Average Overweight (x) . | . . . . . . Largest Inventory Capacity 10 | 8 8 8 10 10 10 Average Capacity 8 | 6 8 8 8 10 10 Most Carried 10 | 5 2 8 8 10 10 Average Carried 6 | 1 2 5 8 8 9 Final Capacity 10 | 8 8 8 10 10 10 Final Carried 10 | 2 2 8 8 10 8 Class Distribution -------------------- 78% | Mutant 21% | Assassin Dominant Class ---------------- Mutant | -10/Materials Mutant | -10/Mines Mutant | -10/Exiles Mutant | -9/Mines Assassin | -8/Materials Resources | -11 -10 -10 -10 -9 -8 ----------- Run | Yrd Mat Min Exi Min Mat Matter Collected 523 | 147 29 257 . 40 50 Remotely 164 | 41 29 94 . . . Salvage Created 653 | 51 . 236 . 77 289 Parts 24 | 4 . 9 . 5 6 Haulers Intercepted 1 | . . . . . 1 Recyclers Shooed . | . . . . . . Parts Field Recycled . | . . . . . . Retrieved Matter . | . . . . . . Parts Self-Destructed . | . . . . . . Prevented . | . . . . . . Kills | -11 -10 -10 -10 -9 -8 ------- Run | Yrd Mat Min Exi Min Mat Combat Hostiles Destroyed 16 | . . 6 . 2 8 Melee 6 | . . . . . 6 Guns 7 | . . 5 . 2 . Classes Destroyed 8 | 1 . 2 . 1 4 Hauler 1 | . . . . . 1 Recycler 1 | 1 . . . . . Watcher 1 | . . . . . 1 Swarmer 5 | . . 1 . . 4 Grunt 8 | . . 5 . 1 2 Brawler 1 | . . . . . 1 Duelist 1 | . . . . 1 . Sentry 1 | . . . . . 1 Best Kill Streak 8 | 1 . 2 . 1 8 Combat Bots Only 8 | . . 2 . 1 8 Max Kills in Single Turn 1 | 1 . 1 . 1 1 Gunslinging . | . . . . . . Exploded . | . . . . . . Melee 1 | . . . . . 1 Uniques/NPCs Destroyed . | . . . . . . Combat | -11 -10 -10 -10 -9 -8 -------- Run | Yrd Mat Min Exi Min Mat Hostile Shots Fired 178 | . 13 41 . 6 118 Missed 43 | . 4 11 . 1 27 Damage Taken 2277 | . 101 371 . 117 1688 Core 615 | . 22 17 . 12 564 Absorbed by Shields . | . . . . . . Core Remaining (%) 89 | 100 . . . 79 . Volleys Fired 30 | 6 . 18 . 6 . Largest 2 | 2 . 2 . 2 . Hottest 70 | 70 . 70 . 40 . Shots Fired 56 | 12 . 36 . 8 . Gun 56 | 12 . 36 . 8 . Cannon . | . . . . . . Launcher . | . . . . . . Special . | . . . . . . Kinetic 38 | 6 . 24 . 8 . Thermal 18 | 6 . 12 . . . Explosive . | . . . . . . Electromagnetic . | . . . . . . Robot Hit Streak 6 | 1 . 6 . 5 . Robot Miss Streak 5 | 5 . 3 . 1 . Penetration Max . | . . . . . . Secondary Targets . | . . . . . . Shots Hit Robots 57 | 4 . 23 . 6 24 Core Hits 22 | 2 . 10 . 5 5 Critical Kills 1 | . . . . . 1 Critical Parts Destroyed 4 | . . . . . 4 Critical Strikes 9 | . . 4 . . 5 Burn 4 | . . 4 . . . Smash 5 | . . . . . 5 Melee Attacks 33 | . . . . . 33 Impact 33 | . . . . . 33 Slashing . | . . . . . . Piercing . | . . . . . . Sneak Attacks 1 | . . . . . 1 Combat Hostiles . | . . . . . . Follow-up Attacks 4 | . . . . . 4 Damage Inflicted 1399 | 52 . 276 . 68 1003 Guns 396 | 52 . 276 . 68 . Cannons . | . . . . . . Explosions . | . . . . . . Melee 1003 | . . . . . 1003 Ramming . | . . . . . . Kinetic 283 | 52 . 163 . 68 . Thermal 113 | . . 113 . . . Explosive . | . . . . . . Electromagnetic . | . . . . . . Impact 1003 | . . . . . 1003 Slashing . | . . . . . . Piercing . | . . . . . . Highest Corruption 19 | . . . . . 19 Average Corruption 9 | . . . . . 9 Corruption Purged . | . . . . . . Corruption Blocked . | . . . . . . Effects 1 | . . . . . 1 Alerts 1 | . . . . . 1 Overload Shots . | . . . . . . Overflow Damage 217 | . . . . . 217 Projectiles . | . . . . . . Explosions . | . . . . . . Melee 217 | . . . . . 217 Knockbacks . | . . . . . . Impact . | . . . . . . Kinetic . | . . . . . . Secondary . | . . . . . . Self-Inflicted Damage . | . . . . . . Shots . | . . . . . . Rammed . | . . . . . . Targets Rammed . | . . . . . . Kicked . | . . . . . . Crushed . | . . . . . . Highest Temperature 129 | 27 . 129 . 10 6 Average Temperature 33 | 14 . 42 . 7 6 Received Heat Transfer 579 | . 54 171 . 12 342 Siege Activations . | . . . . . . Robots Corrupted 3 | . . . . . 3 Combat Hostiles 2 | . . . . . 2 Parts Fried 4 | . . . . . 4 Impact Corruptions 10 | . . . . . 10 Robots Melted 1 | . . 1 . . . Combat Hostiles 1 | . . 1 . . . Parts Melted 1 | . . 1 . . . Heat Transferred 629 | . . 629 . . . Parts Sabotaged . | . . . . . . Parts Stolen . | . . . . . . Parts Stripped . | . . . . . . Power Chain Reactions . | . . . . . . Alert | -11 -10 -10 -10 -9 -8 ------- Run | Yrd Mat Min Exi Min Mat Peak Influence 180 | 5 32 171 . 50 180 Initial 12 | . 3 12 . . . Average 39 | 1 14 77 . 5 28 Maximum Alert Level . | . . . . . . Low Security (%) 100 | 100 100 100 . 100 100 Level 1 . | . . . . . . Level 2 . | . . . . . . Level 3 . | . . . . . . Level 4 . | . . . . . . Level 5 . | . . . . . . High Security . | . . . . . . Max Security . | . . . . . . Squads Dispatched 4 | . 1 1 . . 2 Investigation 3 | . 1 1 . . 1 Extermination . | . . . . . . Reinforcement 1 | . . . . . 1 Assault . | . . . . . . Garrison . | . . . . . . Intercept . | . . . . . . Searches Triggered . | . . . . . . Construction Impeded . | . . . . . . Haulers Reinforced . | . . . . . . Active Scanning Responses . | . . . . . . Cargo Convoy Interrupts . | . . . . . . Stealth | -11 -10 -10 -10 -9 -8 --------- Run | Yrd Mat Min Exi Min Mat Distress Signals . | . . . . . . Communications Jammed . | . . . . . . Distress Signals . | . . . . . . Times Spotted 28 | . 2 10 . 2 14 Peak Tracking Total 12 | . 2 4 . 2 12 Tactical Retreats 2 | . . 1 . . 1 Traps | -11 -10 -10 -10 -9 -8 ------- Run | Yrd Mat Min Exi Min Mat Traps Triggered 1 | . . . . . 1 Indirectly . | . . . . . . Trap Hack Attempts . | . . . . . . Triggered . | . . . . . . Disarmed . | . . . . . . Reprogrammed . | . . . . . . Reused . | . . . . . . Traps Extracted . | . . . . . . Installed . | . . . . . . Triggered . | . . . . . . Machines | -11 -10 -10 -10 -9 -8 ---------- Run | Yrd Mat Min Exi Min Mat Machines Disabled . | . . . . . . Max in Single Turn . | . . . . . . Machines Repaired . | . . . . . . Machines Dismantled . | . . . . . . Machines Sabotaged . | . . . . . . Overloaded Fab Kills . | . . . . . . Hacking | -11 -10 -10 -10 -9 -8 --------- Run | Yrd Mat Min Exi Min Mat Machines Accessed 7 | . 2 2 1 . 2 Terminals 4 | . 2 . . . 2 Fabricators . | . . . . . . Repair Stations . | . . . . . . Recycling Units . | . . . . . . Scanalyzers . | . . . . . . Garrison Access . | . . . . . . Total Hacks 14 | . 8 2 1 . 3 Successful 5 | . 2 2 1 . . Failed 9 | . 6 . . . 3 Catastrophic 2 | . . . . . 2 Database Lockouts . | . . . . . . Manual 9 | . 7 . 1 . 1 Terminals 11 | . 8 . . . 3 Fabricators . | . . . . . . Repair Stations . | . . . . . . Recycling Units . | . . . . . . Scanalyzers . | . . . . . . Garrison Access . | . . . . . . Terminal Hacks 4 | . 1 2 1 . . Prototype ID Bank 1 | . 1 . . . . Open Door 2 | . . 2 . . . Derelict Proto ID Bank 1 | . . . 1 . . Fabricator Hacks . | . . . . . . Repair Station Hacks . | . . . . . . Recycling Unit Hacks . | . . . . . . Scanalyzer . | . . . . . . Garrison Access Hacks . | . . . . . . Unauthorized Hacks 1 | . 1 . . . . Terminals 1 | . 1 . . . . Botnet 1 | . 1 . . . . Fabricators . | . . . . . . Repair Stations . | . . . . . . Recycling Units . | . . . . . . Scanalyzers . | . . . . . . Garrison Access . | . . . . . . Data Cores Recovered . | . . . . . . Used . | . . . . . . Hacking Detections 4 | . 2 . . . 2 Full Trace Events 3 | . 2 . . . 1 Feedback Events . | . . . . . . Feedback Blocked . | . . . . . . Robot Schematics Acquired . | . . . . . . Robots Built . | . . . . . . Authchips . | . . . . . . Time . | . . . . . . Total Robot Build Rating . | . . . . . . Part Schematics Acquired . | . . . . . . Parts Built . | . . . . . . Authchips . | . . . . . . Time . | . . . . . . Total Part Build Rating . | . . . . . . Parts Repaired . | . . . . . . Time . | . . . . . . Parts Recycled . | . . . . . . Recycled Matter . | . . . . . . Retrieved Matter . | . . . . . . Retrieved Components . | . . . . . . Parts Scanalyzed . | . . . . . . Part Schematics Acquired . | . . . . . . Parts Damaged . | . . . . . . Bothacking | -11 -10 -10 -10 -9 -8 ------------ Run | Yrd Mat Min Exi Min Mat Used RIF Installer . | . . . . . . Robots Hacked . | . . . . . . Non-combat . | . . . . . . Combat . | . . . . . . Robot Hacks Applied . | . . . . . . Relay Couplers Released . | . . . . . . Fabnet Peak Effective % . | . . . . . . Robots Rewired . | . . . . . . Allies Hacked . | . . . . . . Hacks Repelled . | . . . . . . Allies | -11 -10 -10 -10 -9 -8 -------- Run | Yrd Mat Min Exi Min Mat Total Allies . | . . . . . . Largest Group . | . . . . . . Highest-Rated Group . | . . . . . . Highest-Rated Ally . | . . . . . . Total Orders . | . . . . . . Ally Attacks 17 | . . 17 . . . Total Damage 94 | . . 94 . . . Kills 2 | . . 2 . . . Allies Corrupted . | . . . . . . Allies Melted . | . . . . . . Intel | -11 -10 -10 -10 -9 -8 ------- Run | Yrd Mat Min Exi Min Mat Robot Analysis Total . | . . . . . . Derelict Logs Recovered 3 | . . 1 . 2 . Drone Launches 17 | . . 17 . . . Drone Recoveries 17 | . . 17 . . . Exploration | -11 -10 -10 -10 -9 -8 ------------- Run | Yrd Mat Min Exi Min Mat Turns Passed 2569 | 132 152 840 383 453 609 Spaces Moved 1221 | 70 92 414 238 243 164 Core 13 | 13 . . . . . Treads 1138 | 57 92 344 238 243 164 Legs . | . . . . . . Wheels . | . . . . . . Hover . | . . . . . . Flight 70 | . . 70 . . . Fastest Speed 50 | 50 160 152 160 160 160 Average Speed 159 | 139 160 160 160 160 160 Slowest Speed 275 | 160 160 275 160 160 160 Overloaded Moves . | . . . . . . Propulsion Burnouts . | . . . . . . Robots Hopped . | . . . . . . Cave-ins Triggered 6 | . . . . . 6 Exploration Rate (%) 40 | 5 18 82 61 56 21 Regions Visited 5 Branch Regions 3 Pre-discovered Areas 1 | . . 1 . . . Known Exits Taken . | . . . . . . Unknown Exits Taken 5 | 1 1 1 1 1 . Scrap Searched 4 | . . 1 . 3 . Spaces Dug 4 | . . . . . 4 Terrain Destroyed 4 | . . . . . 4 Melee 4 | . . . . . 4 Projectile . | . . . . . . AOE . | . . . . . . Terrain Rammed . | . . . . . . Walls Destroyed . | . . . . . . Machines Disabled . | . . . . . . Actions | -11 -10 -10 -10 -9 -8 --------- Run | Yrd Mat Min Exi Min Mat Total 1736 | 93 97 553 241 299 453 Wait 396 | . 6 94 . 48 248 Move 1216 | 69 91 413 237 242 164 Hop . | . . . . . . Pick Up 31 | 10 . 13 1 2 5 Fast Attach . | . . . . . . Attach 14 | 7 . 1 . . 6 Detach . | . . . . . . Swap 11 | . . 8 1 1 1 Drop 10 | 1 . 6 2 . 1 Fire 30 | 6 . 18 . 6 . Melee 28 | . . . . . 28 Ram . | . . . . . . Kick . | . . . . . . Crush . | . . . . . . Escape Stasis . | . . . . . . Rewire . | . . . . . . Trap . | . . . . . . Miscellaneous . | . . . . . . Route ------- -11/Scrapyard -10/Materials -10/Mines (discovered 2 exits: [*Mat] / *Exi) -10/Exiles -9/Mines -8/Materials (discovered 1 exit: Fac) History --------- Turn | Location | Event 10 | -11/Scrapyard | Discovered new exit (range 15) 133 | -11/Scrapyard | Entered Materials 267 | -10/Materials | Discovered new exit (range 8) 285 | -10/Materials | Entered Mines 313 | -10/Mines | Build established: Mutant 319 | -10/Mines | Met a Derelict bent on vengeance 359 | -10/Mines | Found the Drone Emporium 366 | -10/Mines | Found Prototype Device 368 | -10/Mines | Identified Splice Drone Bay 427 | -10/Mines | Discovered new exit (range 13) 522 | -10/Mines | Received a Rocket Launcher from a helpful Derelict 744 | -10/Mines | Learned location of Zion (-6) 748 | -10/Mines | Met a Derelict shopkeep closing up shop 1058 | -10/Mines | Joined a pair of Derelicts in attacking an 0b10 outpost 1119 | -10/Mines | Deemed a non-threat by the Exiles lab entrance 1119 | -10/Mines | Discovered new exit (range 5) 1125 | -10/Mines | Entered Exiles 1170 | -10/Exiles | Met 8R-AWN 1191 | -10/Exiles | Met EX-HEX 1241 | -10/Exiles | Met EX-BIN 1263 | -10/Exiles | Aligned with FarCom system 1265 | -10/Exiles | Given EX-Vault access code 1305 | -10/Exiles | Opened EX-Vault 1316 | -10/Exiles | Found Supersonic Drone Bay 1349 | -10/Exiles | Warned to stay clear of 0b10 Research branches 1394 | -10/Exiles | Met EX-DEC 1493 | -10/Exiles | Discovered new exit (range 11) 1508 | -10/Exiles | Left Exiles lab with Supersonic Drone Bay 1508 | -10/Exiles | Entered Mines 1577 | -9/Mines | Learned location of 1 exit from Materials 1644 | -9/Mines | Found a hidden stash of uninstalled traps 1667 | -9/Mines | Learned location of 1 exit from Proximity Caves 1946 | -9/Mines | Discovered new exit (range 9) 1961 | -9/Mines | Entered Materials 1961 | -8/Materials | Evolved 4 slots: Propulsion x1, Utility x3 1962 | -8/Materials | Identified exit to Factory 2273 | -8/Materials | Build established: Assassin 2509 | -8/Materials | Crushed by falling debris 2526 | -8/Materials | Core integrity fell below 50% 2554 | -8/Materials | Crushed by falling debris 2559 | -8/Materials | Lost 9 parts (1p3n4u1w) 2560 | -8/Materials | Core integrity fell below 20% 2563 | -8/Materials | Crushed by falling debris 2563 | -8/Materials | System corruption reached 10% 2564 | -8/Materials | Crushed by falling debris 2567 | -8/Materials | Crushed by falling debris 2571 | -8/Materials | Crushed by falling debris 2571 | -8/Materials | Smashed by cave-in Last Messages --------------- S-10 Pest destroyed. The unstable cave ceiling collapses. 75 Matter crushed. U-05 Engineer builds a Wall. K-01 Serf collects debris. The unstable cave ceiling collapses. Crushed by falling debris. Great Maul destroyed. System corrupted by crushing effect (+2). [Achievement: System Compromised] The unstable cave ceiling collapses. Crushed by falling debris. Great Maul destroyed. System corrupted by crushing effect (+3). Imp. Signal Interpreter destroyed. System corrupted by crushing effect (+5). The unstable cave ceiling collapses. Crushed by falling debris. The unstable cave ceiling collapses. Crushed by falling debris. Map ----- +----------------------------------------------------+ | ??????##???????/ "" [ #????????????? | | ??????#???"????# #######+###????????????? | | ????????? ?"???# ##?? ? ????#?????????? | | #?????#?? ???? ## ##????? ?????#????????? | | ??????########### #????? ?????????????? | | ??????# / #????? ?????????????? | | #????## # #?# ? ????????????? | | ?#????# # #?#??[ ????????????? | | ?#????# # #??? ???????????? | | #?????# # #?#?####+####???????????? | | ???#??# # #?## ???????????????????? | | ??????# # #??????"?"?" ???????????? | | ??#?### + " #??#??? ?"?? #??????????? | | ??????############%##???? ????"??? ?????????? | | ?????????????#???#"#?##? ?? ??????????????? | | ?##???????#?#????# #????? ???? ?????????????? | | ?##??##????#????## #?#??????????????????????? | | ????????##?#???#?# #?#??? ?????? ?????????? | | ?#??#???#?#???#??#/############?#???????????? | | ??#??##??##??????# !! #?????????????? | | ?????????#????#??# !! #?????????????? | | ????????#???#????# ! #?????????????? | | ??????#??##???#??# ##????????????? | | ??????##?????????# #????????????? | | ??????##???#?????#######+########???????????? | | ????????#????#?#?#?#@#Y[* #??????? | | ?????????#?????????###%% #??????? | | ????????#????????????# #??????? | | ???????????????????#?# #??????? | | ?????????#??????????## +??????? | | ??????#?????????#????# " #??????? | | ?????????????????????# #??????? | | ??????????#??????????# ] #??????? | | ????????????????????## " " ???????? | | ?????????????????#???T " ???????? | | ?????????????????????# ????????? | | ?????????????????????# ????????? | | ?????????????????????# ???????????? | | ?????????????????????# ?????????????? | | ?????????????????????# ???????????????? | | ?????????????????????? ?????????????????? | | ????????????????????????????????????????????? | | ????????????????????????????????????????????? | | ????????????????????????????????????????????? | | ????????????????????????????????????????????? | | ????????????????????????????????????????????? | | ????????????????????????????????????????????? | | ????????????????????????????????????????????? | | ????????????????????????????????????????????? | | ????????????????????????????????????????????? | +----------------------------------------------------+ Best States ------------- Heat Dissipation 31 Energy Generation 14 Energy Capacity 250 Matter Stores 300 Matter Capacity 300 Sight Range 16 Terrain Scan Range 16 Terrain Scan Density 10 Evasion (%) 50 Melee Accuracy 5 Recoil Reduction 3 Item Schematics ----------------- None Robot Schematics ------------------ None Fabricated ------------ Nothing Alien Tech Used ----------------- None Achievements -------------- Error 47 Factory Defaults Release The Drones! System Compromised Challenges ------------ None Game ------ Seed LatentDecoyJammer Manual? 0 Play Time 00:17:40 Cumulative 3.7 hours Start 2025.05.05 @ 13:51:57 End 2025.05.05 @ 14:09:11 Sessions 1 Manual Loads 0 Difficulty Rogue Special Mode None Game No. 13 Rogue 13 Adventurer 0 Explorer 0 Win Type - Total 0 Types 0/0/0/0/0/0/0/0/0 Lore% 8 Gallery% 11 Achievement% 13 Wizard Run 0 Options --------- Layout 1 ASCII 0 Keyboard 0 Movement Mouse Keybinds 0 Fullscreen 1 Font 24/Smallcaps Map View 50x35 Zoom Use 0% Tactical HUD 0 Map Filters NONE Filters NONE Steam 1 RUN: a88f0efe-d8eb-4828-a7db-458ab082ac49